bitfinex/quotes_ETHUSD_20250827
["timestamp","ask_amount","ask_price","bid_price","bid_amount"]
[1756337968354,4.29457836,4513.5,4513.4,1e-08]
[1756337968549,4.29457836,4513.5,4513.4,0.31400001]
[1756337968550,7.88364851,4513.5,4513.4,0.31400001]
[1756337968853,7.88364851,4513.5,4513.4,0.78070001]
[1756337968854,4.23604851,4513.5,4513.4,0.78070001]
[1756337969061,5.77847302,4513.5,4513.4,0.78070001]
[1756337969743,1.91007302,4513.5,4513.4,2.99632459]
[1756337969946,1.8154,4514.2,4513.4,0.89110001]
[1756337970272,3.96815788,4514.1,4513.7,2.32582855]
[1756337970462,1.705,4514.2,4514.0,0.314]
[1756337970658,3.762,4514.1,4514.0,0.314]
[1756337971161,1.705,4514.2,4514.0,0.314]
[1756337971326,0.001,4514.4,4514.0,2.99603008]
[1756337971523,3.507,4514.3,4514.2,2.21523193]
[1756337971727,3.507,4514.3,4514.2,2.52923193]
[1756337971963,3.507,4514.3,4514.2,2.99593193]
[1756337972569,3.507,4514.3,4514.2,0.7807]
[1756337973241,0.001,4514.4,4514.2,0.7807]
[1756337973439,3.761,4514.3,4514.2,0.314]
[1756337974163,3.761,4514.3,4514.2,0.7807]
[1756337974831,3.761,4514.3,4514.2,2.99588319]
[1756337976241,0.001,4514.4,4514.2,2.99588319]
[1756337976443,3.76,4514.3,4514.2,2.52918319]
[1756337976958,3.76,4514.3,4514.2,0.314]
[1756337977158,3.76,4514.3,4514.2,0.7807]
[1756337977557,0.001,4514.4,4514.3,2.21518286]
[1756337977742,0.001,4514.4,4514.3,2.68188286]
[1756337977946,0.001,4514.4,4514.3,2.99588286]
[1756337981476,0.001,4514.4,4514.3,8.78448257]
[1756337984065,0.001,4514.4,4514.3,6.56929971]
[1756337984267,2.21518286,4514.3,4514.1,0.1104]
[1756337984467,5.97303193,4514.2,4514.1,0.1104]
[1756337984878,2.21557549,4513.5,4512.8,0.02]
[1756337985058,7.78697549,4513.5,4512.8,0.02]
[1756337985258,8.54477549,4513.5,4512.8,0.02]
[1756337986163,11.74988791,4513.5,4512.8,0.02]
[1756337986912,11.74988791,4513.5,4513.3,0.004]
[1756337987983,7.52798791,4513.5,4513.3,0.004]
[1756337988279,10.78797549,4513.5,4513.4,0.29260001]
[1756337988612,11.53317549,4513.5,4513.4,1e-08]
[1756337988894,11.73819933,4513.5,4513.4,1e-08]
[1756337989217,11.53317549,4513.5,4513.4,1e-08]
[1756337989361,11.73818611,4513.5,4513.4,1e-08]
[1756337989560,7.98018611,4513.5,4513.4,1e-08]
[1756337989760,11.74118611,4513.5,4513.4,1e-08]
[1756337990276,7.98018611,4513.5,4513.4,1e-08]
[1756337990889,10.99798611,4513.5,4513.4,1e-08]
[1756337991193,11.29188611,4513.5,4513.4,1e-08]
[1756337991772,7.52888611,4513.5,4513.4,1e-08]
[1756337991995,11.29188611,4513.5,4513.4,1e-08]
[1756337992167,11.74318611,4513.5,4513.4,1e-08]
[1756337993271,11.74218611,4513.5,4513.4,1e-08]
[1756337994097,11.29088611,4513.5,4513.4,1e-08]
[1756337994606,11.74218611,4513.5,4513.4,1e-08]
[1756337994967,11.53717549,4513.5,4513.4,1e-08]
[1756337995163,11.74212433,4513.5,4513.4,1e-08]
[1756337996713,11.29182433,4513.5,4513.4,1e-08]
[1756337996870,11.74312433,4513.5,4513.4,1e-08]
[1756337997071,11.74412433,4513.5,4513.4,1e-08]
[1756337997472,11.29282433,4513.5,4513.4,1e-08]
[1756337997833,11.74412433,4513.5,4513.4,1e-08]
[1756337998593,11.74411145,4513.5,4513.4,1e-08]
[1756337998797,11.74411199,4513.5,4513.4,1e-08]
[1756338000017,7.52881199,4513.5,4513.4,1e-08]
[1756338000227,11.29181199,4513.5,4513.4,1e-08]
[1756338000428,11.74311199,4513.5,4513.4,1e-08]
[1756338001706,5.21562458,4513.4,4513.3,1e-08]
[1756338001916,5.42056108,4513.4,4513.3,1e-08]
[1756338002117,6.16576108,4513.4,4513.3,1e-08]
[1756338002323,5.42056108,4513.4,4513.3,1e-08]
[1756338002491,5.53096108,4513.4,4513.3,1e-08]
[1756338002839,9.38292458,4513.4,4513.3,1e-08]
[1756338003020,10.03888675,4513.4,4513.3,1e-08]
[1756338004797,9.08902458,4513.4,4513.3,1e-08]
[1756338004994,9.08902458,4513.4,4513.3,0.29260001]
[1756338005193,9.08802458,4513.4,4513.3,1e-08]
[1756338005520,10.03790641,4513.4,4513.3,1e-08]
[1756338005719,17.18790641,4513.4,4513.3,1e-08]
[1756338005922,16.73560641,4513.4,4513.3,1e-08]
[1756338006125,16.73560641,4513.4,4513.3,0.29260001]
[1756338006126,12.68170641,4513.4,4513.3,0.29260001]
[1756338006297,16.23802458,4513.4,4513.3,0.75710001]
[1756338006711,0.1114,4513.4,4513.3,0.75710001]
[1756338006920,3.762,4513.4,4513.3,0.75710001]
[1756338007121,0.001,4513.4,4513.3,0.75710001]
[1756338007856,0.001,4513.4,4513.3,3.76477368]
[1756338009429,3.762,4513.4,4513.3,0.75710001]
[1756338009723,5.97762458,4513.4,4513.3,0.29260001]
[1756338010231,6.08802458,4513.4,4513.3,0.29260001]
[1756338010629,6.38192458,4513.4,4513.3,1e-08]
[1756338011299,6.08802458,4513.4,4513.3,1e-08]
[1756338012304,6.08802458,4513.4,4513.3,0.29260001]
[1756338013732,0.1114,4513.4,4513.3,0.29260001]
[1756338013934,3.8724,4513.4,4513.3,0.75710001]
[1756338014737,6.08802458,4513.4,4513.3,0.75710001]
[1756338014961,6.08802458,4513.4,4513.3,1e-08]
[1756338015250,6.58746877,4513.4,4513.3,1e-08]
[1756338015749,6.93424757,4513.4,4513.3,1e-08]
[1756338016107,10.38554757,4513.4,4513.3,1e-08]
[1756338016302,10.03876877,4513.4,4513.3,1e-08]
[1756338018356,10.03858981,4513.4,4513.3,1e-08]
[1756338019022,10.03856888,4513.4,4513.3,1e-08]
[1756338020613,10.38541109,4513.4,4513.3,1e-08]
[1756338020813,10.38541109,4513.4,4512.8,0.02]
[1756338020814,3.0,4513.3,4512.8,1e-08]
[1756338021130,2.21582096,4513.0,4512.8,1e-08]
[1756338021331,7.2529443,4512.9,4512.8,1e-08]
[1756338021531,14.5133443,4512.9,4512.8,1e-08]
[1756338021736,14.9442443,4512.9,4512.8,1e-08]
[1756338022115,17.5069805,4512.9,4512.8,1e-08]
[1756338022827,16.7874805,4512.9,4512.8,0.73580001]
[1756338023033,16.7874805,4512.9,4512.8,0.28960001]
[1756338024422,16.7874805,4512.9,4512.8,0.73980001]
[1756338024626,17.5059805,4512.9,4512.8,0.00400001]
[1756338026933,17.5069805,4512.9,4512.8,0.00400001]
[1756338027142,17.0760805,4512.9,4512.8,0.00400001]
[1756338028250,17.5069805,4512.9,4512.8,1e-08]
[1756338028650,17.50668649,4512.9,4512.8,1e-08]
[1756338029180,13.31578649,4512.9,4512.8,1e-08]
[1756338029387,16.78716618,4512.9,4512.8,1e-08]
[1756338029572,13.02816618,4512.9,4512.8,1e-08]
[1756338029771,16.78716618,4512.9,4512.8,1e-08]
[1756338029972,17.50566618,4512.9,4512.8,1e-08]
[1756338032090,2.331,4512.7,4511.3,1e-08]
[1756338032253,2.21714741,4510.3,4509.4,0.4492]
[1756338032448,2.21734406,4509.9,4509.8,0.02]
[1756338032761,9.21421796,4509.9,4509.8,0.02]
[1756338033475,5.21734406,4509.9,4509.8,0.02]
[1756338033693,9.21391298,4509.9,4509.8,0.3096]
[1756338034191,9.00934406,4509.9,4509.8,0.3096]
[1756338034576,5.21734406,4509.9,4509.8,0.3096]
[1756338034757,9.00834406,4509.9,4509.8,0.3096]
[1756338034948,5.21734406,4509.9,4509.8,0.3096]
[1756338035260,5.21734406,4509.9,4509.8,0.7558]
[1756338035599,9.35540469,4509.9,4509.8,0.7558]
[1756338035904,9.00834406,4509.9,4509.8,0.7558]
[1756338036381,9.00834406,4509.9,4509.8,0.3096]
[1756338037192,3.0,4509.9,4509.8,0.3096]
[1756338037362,6.791,4509.9,4509.8,0.7558]
[1756338037564,6.789,4509.9,4509.8,0.7558]
[1756338037859,9.00634406,4509.9,4509.8,0.7558]
[1756338039461,9.00634406,4509.9,4509.8,0.3096]
[1756338039864,3.0,4509.9,4509.8,0.7558]
[1756338040064,7.13503993,4509.9,4509.8,0.7558]
[1756338040275,9.35238399,4509.9,4509.8,0.7558]
[1756338040868,3.34703993,4509.9,4509.8,0.7558]
[1756338041069,9.35438399,4509.9,4509.8,0.7558]
[1756338041470,4.13703993,4509.9,4509.8,0.7558]
[1756338041702,6.35438399,4509.9,4509.8,0.7558]
[1756338042014,4.13703993,4509.9,4509.8,0.7558]
[1756338042312,4.24823993,4509.9,4509.8,0.7558]
[1756338042481,4.24823993,4509.9,4509.8,0.3096]
[1756338042665,4.24723993,4509.9,4509.8,0.3096]
[1756338042869,6.46458399,4509.9,4509.8,0.7558]
[1756338043478,4.24723993,4509.9,4509.8,0.7558]
[1756338043705,6.46258399,4509.9,4509.8,0.7558]
[1756338044299,6.46258399,4509.9,4509.8,0.7598]
[1756338044508,6.46258399,4509.9,4509.8,0.3136]
[1756338044670,6.46258399,4509.9,4509.8,0.024]
[1756338044872,0.45823993,4509.9,4509.8,0.3136]
[1756338045078,6.46258399,4509.9,4509.8,0.3136]
[1756338045371,2.67558399,4509.9,4509.8,0.3136]
[1756338045668,4.24523993,4509.9,4509.8,0.7598]
[1756338046072,3.8982,4509.9,4509.8,0.7598]
[1756338046272,0.1112,4509.9,4509.8,0.7598]
[1756338046503,3.8982,4509.9,4509.8,0.7598]
[1756338047503,0.1112,4509.9,4509.8,0.3108]
[1756338047802,6.11354406,4509.9,4509.8,0.3108]
[1756338051174,6.11254406,4509.9,4509.8,0.3108]
[1756338053104,6.40244406,4509.9,4509.8,0.024]
[1756338053410,0.1112,4509.9,4509.8,0.3108]
[1756338053632,0.1112,4509.9,4509.8,3.00229323]
[1756338053785,7.15,4511.5,4509.8,3.00229323]
[1756338053786,1.706,4511.0,4509.9,0.792]
[1756338053986,3.786,4511.4,4510.7,2.3281508]
[1756338054204,3.786,4511.4,4510.7,2.6149508]
[1756338054509,3.786,4511.4,4510.7,3.0890508]
[1756338054812,3.786,4511.0,4510.7,3.0890508]
[1756338056220,3.785,4511.3,4510.7,3.8810508]
[1756338058105,3.782,4510.9,4510.2,2.21718669]
[1756338058408,3.782,4510.9,4509.8,0.1352]
[1756338058409,0.1112,4510.4,4509.8,0.1352]
[1756338058620,0.2909,4510.8,4509.8,0.1352]
[1756338058621,3.785,4510.6,4510.3,2.50394741]
[1756338058801,3.785,4510.6,4510.4,0.4741]
[1756338058983,3.785,4510.6,4510.5,2.2170491]
[1756338059181,0.001,4510.8,4510.7,2.2169508]
[1756338059576,0.001,4510.8,4510.7,2.9778508]
[1756338059777,0.001,4510.8,4510.7,3.7698508]
[1756338060389,0.001,4510.8,4510.5,0.1112]
[1756338060589,0.001,4510.8,4510.5,2.32824129]
[1756338060790,0.001,4510.8,4510.4,2.21707032]
[1756338061190,0.001,4510.8,4510.5,2.21704384]
[1756338061395,0.001,4510.8,4510.7,2.5037508]
[1756338061793,0.001,4510.8,4510.7,2.9778508]
[1756338062600,0.001,4510.8,4510.7,3.8810508]
[1756338064432,0.001,4510.8,4510.5,2.21703827]
[1756338064585,0.001,4510.8,4510.5,2.32823827]
[1756338064779,0.001,4510.8,4510.7,0.2868]
[1756338065008,0.001,4510.8,4510.7,2.5037508]
[1756338065311,0.001,4510.8,4510.7,2.9778508]
[1756338065518,0.001,4510.8,4510.7,2.5037508]
[1756338066002,0.001,4510.8,4510.7,0.2868]
[1756338066602,0.2909,4510.8,4510.5,0.1112]
[1756338066804,0.2909,4510.8,4509.9,0.4741]
[1756338066982,0.1112,4510.6,4510.1,2.21723261]
[1756338067387,0.5529,4510.6,4509.8,0.024]
[1756338067586,2.21710275,4510.4,4509.8,0.1352]
[1756338067837,6.00216199,4510.3,4509.8,0.1352]
[1756338067993,0.2899,4509.9,4509.8,0.024]
[1756338068490,2.50724406,4509.9,4509.8,0.024]
[1756338068691,0.2899,4509.9,4509.8,0.024]
[1756338069112,2.50724406,4509.9,4509.8,0.024]
[1756338069330,2.94894406,4509.9,4509.8,0.024]
[1756338069841,5.94894406,4509.9,4509.8,0.024]
[1756338070139,6.15376656,4509.9,4509.8,0.024]
[1756338070613,6.15376656,4509.9,4509.8,1e-08]
[1756338070985,2.21754074,4509.5,4509.4,1e-08]
[1756338071322,11.02756324,4509.5,4509.4,1e-08]
[1756338071622,11.75916324,4509.5,4509.4,1e-08]
[1756338072322,12.55116324,4509.5,4509.4,1e-08]
[1756338072510,3.00983583,4508.9,4508.8,1e-08]
[1756338072692,15.45185833,4508.9,4508.8,1e-08]
[1756338073098,12.38745833,4508.9,4508.8,1e-08]
[1756338073328,16.53169566,4508.9,4508.8,1e-08]
[1756338073823,12.73469566,4508.9,4508.8,1e-08]
[1756338074022,16.53169566,4508.9,4508.8,1e-08]
[1756338074619,16.53069566,4508.9,4508.8,1e-08]
[1756338074819,17.00479566,4508.9,4508.8,1e-08]
[1756338075513,13.20879566,4508.9,4508.8,1e-08]
[1756338075845,3.0,4508.0,4507.8,1e-08]
[1756338076044,7.12915032,4507.9,4507.8,1e-08]
[1756338076204,7.03552782,4507.9,4507.8,1e-08]
[1756338076404,10.83152782,4507.9,4507.8,1e-08]
[1756338076607,11.12912782,4507.9,4507.8,1e-08]
[1756338077222,10.83152782,4507.9,4507.8,1e-08]
[1756338077412,10.83252782,4507.9,4507.8,0.28860001]
[1756338077614,7.03552782,4507.9,4507.8,0.28860001]
[1756338077827,10.83252782,4507.9,4507.8,0.28860001]
[1756338078008,10.83252782,4507.9,4507.8,1e-08]
[1756338078209,11.13012782,4507.9,4507.8,1e-08]
[1756338078617,7.03552782,4507.9,4507.8,1e-08]
[1756338078846,10.83152782,4507.9,4507.8,1e-08]
[1756338079137,7.03552782,4507.9,4507.8,0.28860001]
[1756338079339,7.03552782,4507.9,4507.8,1e-08]
[1756338079641,11.12912782,4507.9,4507.8,1e-08]
[1756338080343,11.60272782,4507.9,4507.8,1e-08]
[1756338080840,11.60272782,4507.9,4507.8,0.28860001]
[1756338080841,6.92432782,4507.9,4507.8,0.28860001]
[1756338081029,10.83152782,4507.9,4507.8,1e-08]
[1756338081211,11.12912782,4507.9,4507.8,1e-08]
[1756338081543,11.60272782,4507.9,4507.8,1e-08]
[1756338082040,11.60572782,4507.9,4507.8,0.00400001]
[1756338082242,10.83452782,4507.9,4507.8,0.00400001]
[1756338082428,10.83652782,4507.9,4507.8,0.29260001]
[1756338082739,11.18376695,4507.9,4507.8,0.29260001]
[1756338082957,11.18376695,4507.9,4507.8,0.00400001]
[1756338083414,11.18276695,4507.9,4507.8,0.00400001]
[1756338083611,7.38276695,4507.9,4507.8,0.29260001]
[1756338083810,4.38276695,4507.9,4507.8,0.75060001]
[1756338084016,8.18276695,4507.9,4507.8,0.29260001]
[1756338084542,8.18276695,4507.9,4507.8,0.00400001]
[1756338085716,11.18276695,4507.9,4507.8,0.00400001]
[1756338085910,10.83552782,4507.9,4507.8,0.00400001]
[1756338086152,7.83552782,4507.9,4507.8,0.29260001]
[1756338086441,4.03552782,4507.9,4507.8,0.75060001]
[1756338086660,7.83552782,4507.9,4507.8,0.75060001]
[1756338087839,7.83552782,4507.9,4507.8,0.00400001]
[1756338088543,10.83552782,4507.9,4507.8,0.00400001]
[1756338088944,11.13312782,4507.9,4507.8,0.00400001]
[1756338089153,11.48033607,4507.9,4507.8,0.00400001]
[1756338089349,11.18273607,4507.9,4507.8,0.00400001]
[1756338089553,11.18173607,4507.9,4507.8,0.00400001]
[1756338089754,10.83452782,4507.9,4507.8,0.29260001]
[1756338090251,11.13512782,4507.9,4507.8,0.00400001]
[1756338091526,18.28512782,4507.9,4507.8,0.00400001]
[1756338092257,18.48880532,4507.9,4507.8,0.00400001]
[1756338092472,14.38920532,4507.9,4507.8,0.00400001]
[1756338092759,14.87532782,4507.9,4507.8,0.75060001]
[1756338092980,14.98652782,4507.9,4507.8,0.75060001]
[1756338093130,14.98752782,4507.9,4507.8,0.75060001]
[1756338093552,8.9672,4507.9,4507.8,0.75060001]
[1756338093755,7.83752782,4507.9,4507.8,0.75060001]
[1756338094261,5.6192,4507.9,4507.8,0.75060001]
[1756338094452,1.8172,4507.9,4507.8,0.75060001]
[1756338094654,5.508,4507.9,4507.8,0.75060001]
[1756338094835,7.83752782,4507.9,4507.8,0.00400001]
[1756338095529,8.13512782,4507.9,4507.8,0.00400001]
[1756338095729,4.03552782,4507.9,4507.8,0.00400001]
[1756338096271,8.13612782,4507.9,4507.8,0.00400001]
[1756338096492,8.34068685,4507.9,4507.8,0.00400001]
[1756338096633,4.53768685,4507.9,4507.8,0.00400001]
[1756338096838,8.04308685,4507.9,4507.8,0.00400001]
[1756338098944,5.6172,4507.9,4507.8,0.29260001]
[1756338099164,5.6172,4507.9,4507.8,0.75060001]
[1756338099463,5.6182,4507.9,4507.8,0.75060001]
[1756338099840,1.8172,4507.9,4507.8,0.75060001]
[1756338100042,5.6182,4507.9,4507.8,0.75060001]
[1756338100250,7.83652782,4507.9,4507.8,0.29260001]
[1756338100566,8.33948067,4507.9,4507.8,0.00400001]
[1756338101069,8.34048067,4507.9,4507.8,0.00400001]
[1756338101965,8.04288067,4507.9,4507.8,0.00400001]
[1756338102368,4.24188067,4507.9,4507.8,0.29260001]
[1756338102574,8.04188067,4507.9,4507.8,0.29260001]
[1756338102867,8.04188067,4507.9,4507.8,0.00400001]
[1756338103072,8.33948067,4507.9,4507.8,0.00400001]
[1756338103568,8.04188067,4507.9,4507.8,0.00400001]
[1756338103772,8.04188067,4507.9,4507.8,0.29260001]
[1756338103973,8.03988067,4507.9,4507.8,0.29260001]
[1756338104151,4.24188067,4507.9,4507.8,0.29260001]
[1756338104352,8.03988067,4507.9,4507.8,0.29260001]
[1756338104957,8.03988067,4507.9,4507.8,0.75060001]
[1756338105142,5.82055285,4507.9,4507.8,0.75060001]
[1756338105857,8.03888067,4507.9,4507.8,0.75060001]
[1756338109541,8.03888067,4507.9,4507.8,0.29260001]
[1756338109772,5.82055285,4507.9,4507.8,0.76760001]
[1756338109961,5.81755285,4507.9,4507.8,0.76760001]
[1756338110159,8.03600933,4507.9,4507.8,0.76760001]
[1756338111276,7.83052782,4507.9,4507.8,0.76760001]
[1756338112183,8.03201408,4507.9,4507.8,0.76760001]
[1756338112357,4.24201408,4507.9,4507.8,0.76760001]
[1756338112557,8.03201408,4507.9,4507.8,0.76760001]
[1756338112753,7.82652782,4507.9,4507.8,0.29260001]
[1756338113074,8.03099681,4507.9,4507.8,0.29260001]
[1756338113470,7.82552782,4507.9,4507.8,0.29260001]
[1756338113778,8.03096466,4507.9,4507.8,0.29260001]
[1756338114941,8.76086466,4507.9,4507.8,0.00400001]
[1756338116245,8.33186466,4507.9,4507.8,0.00400001]
[1756338116447,8.32986466,4507.9,4507.8,0.00400001]
[1756338116858,4.54286466,4507.9,4507.8,0.00400001]
[1756338117193,7.82352782,4507.9,4507.8,0.31900001]
[1756338117360,8.32980785,4507.9,4507.8,0.00400001]
[1756338117559,8.75880785,4507.9,4507.8,0.00400001]
[1756338119975,4.24190785,4507.9,4507.8,0.00400001]
[1756338120172,8.32680785,4507.9,4507.8,0.00400001]
[1756338120482,8.32680785,4507.9,4507.8,0.31900001]
[1756338120483,8.02591552,4507.9,4507.8,0.31900001]
[1756338121095,8.02491434,4507.9,4507.8,0.31900001]
[1756338121396,8.32581434,4507.9,4507.8,0.00400001]
[1756338121597,4.54281434,4507.9,4507.8,0.00400001]
[1756338121800,8.32581434,4507.9,4507.8,0.00400001]
[1756338122094,4.24191434,4507.9,4507.8,0.00400001]
[1756338122400,8.02391434,4507.9,4507.8,0.00400001]
[1756338123026,8.32481434,4507.9,4507.8,0.00400001]
[1756338124200,8.75381434,4507.9,4507.8,0.00400001]
[1756338124399,11.75381434,4507.9,4507.8,0.00400001]
[1756338124999,11.75381434,4507.9,4507.8,1e-08]
[1756338125304,5.21837703,4507.8,4506.8,1e-08]
[1756338125595,2.21882003,4506.9,4506.8,1e-08]
[1756338125892,11.21710655,4506.9,4506.8,1e-08]
[1756338126093,7.43110655,4506.9,4506.8,1e-08]
[1756338126293,10.91633135,4506.9,4506.8,1e-08]
[1756338126499,11.21723135,4506.9,4506.8,1e-08]
[1756338127104,11.64623135,4506.9,4506.8,1e-08]
[1756338128600,7.86023135,4506.9,4506.8,1e-08]
[1756338128807,11.64623135,4506.9,4506.8,1e-08]
[1756338129683,11.64579037,4506.9,4506.8,1e-08]
[1756338130309,11.64569433,4506.9,4506.8,1e-08]
[1756338131198,11.64369433,4506.9,4506.8,1e-08]
[1756338131578,8.20700807,4506.9,4506.8,1e-08]
[1756338131783,11.99000807,4506.9,4506.8,1e-08]
[1756338134996,11.98966558,4506.9,4506.8,1e-08]
[1756338135398,12.10086558,4506.9,4506.8,1e-08]
[1756338136113,12.10086558,4506.9,4505.2,0.1112]
[1756338136114,0.792,4506.7,4505.8,1e-08]
[1756338136416,2.21931245,4505.9,4505.8,1e-08]
[1756338136615,11.21664642,4505.9,4505.8,1e-08]
[1756338136821,11.32784642,4505.9,4505.8,1e-08]
[1756338136980,7.54284642,4505.9,4505.8,1e-08]
[1756338137176,11.12341245,4505.9,4505.8,1e-08]
[1756338137376,7.33841245,4505.9,4505.8,1e-08]
[1756338137605,11.12341245,4505.9,4505.8,1e-08]
[1756338138322,11.12341245,4505.9,4500.8,0.02]
[1756338138323,2.22146323,4501.6,4500.8,0.02]
[1756338138520,0.02220264,4502.1,4500.9,0.4347]
[1756338138810,0.02220264,4502.4,4501.5,0.3007]
[1756338139029,5.335,4504.5,4501.5,0.3007]
[1756338139030,0.22643848,4503.1,4501.6,0.4347]
[1756338139336,0.02220264,4503.9,4501.7,0.02221383]
[1756338139482,0.02220264,4503.9,4503.0,0.3007]
[1756338139789,2.22037614,4503.8,4503.1,0.4347]
[1756338139992,2.22034726,4503.8,4503.7,0.3007]
[1756338140193,2.22034726,4503.8,4503.7,0.7354]
[1756338140425,2.22034726,4503.8,4502.8,0.4347]
[1756338140426,4.2763,4503.8,4502.8,0.4347]
[1756338140604,2.22058021,4503.4,4502.8,0.4347]
[1756338140917,0.34752514,4504.2,4503.3,0.3007]
[1756338141085,0.20398317,4504.1,4503.4,0.4347]
[1756338141414,0.20398317,4504.0,4503.4,0.4347]
[1756338141622,0.20398317,4503.9,4503.4,0.64887]
[1756338141930,0.20398317,4503.8,4503.5,0.4347]
[1756338142082,2.22019557,4504.2,4503.8,0.3007]
[1756338142282,2.42403601,4504.1,4503.9,0.4347]
[1756338142490,0.20382436,4504.0,4503.3,1.707]
[1756338142694,0.20382436,4504.0,4503.9,0.3007]
[1756338142695,2.42408067,4504.0,4503.9,0.3007]
[1756338142984,2.22006757,4504.4,4503.9,0.3007]
[1756338143212,0.20384483,4504.3,4503.9,0.7354]
[1756338143392,2.42401408,4504.2,4503.9,0.7354]
[1756338143712,0.20385033,4504.1,4504.0,0.4347]
[1756338143906,0.20389402,4504.1,4504.0,0.7354]
[1756338144214,2.42409339,4504.1,4504.0,0.7354]
[1756338145113,2.42409339,4504.1,4503.4,0.4347]
[1756338145114,0.20389402,4504.1,4503.4,0.4347]
[1756338145286,0.20389402,4504.0,4503.5,0.4347]
[1756338145615,2.22019937,4504.1,4504.0,0.3007]
[1756338145814,2.42407377,4504.1,4504.0,0.3007]
[1756338146205,0.2038744,4504.1,4504.0,0.7354]
[1756338146388,2.22001167,4504.5,4504.0,0.7354]
[1756338146582,0.20386554,4504.4,4504.0,0.7354]
[1756338146782,0.20386554,4504.4,4504.1,0.4347]
[1756338147012,2.22015008,4504.2,4504.1,0.4347]
[1756338147183,2.42401562,4504.2,4504.1,0.7354]
[1756338147600,0.20386554,4504.2,4504.1,0.7354]
[1756338147801,2.22021297,4504.1,4503.5,0.4347]
[1756338148040,0.20386554,4504.0,4503.6,0.4347]
[1756338148187,0.20386554,4504.0,4503.9,0.3007]
[1756338148590,0.20386554,4504.0,4503.9,0.7354]
[1756338148820,2.4241142,4504.0,4503.9,0.7354]
[1756338149722,0.20386554,4504.0,4503.9,0.7354]
[1756338149898,0.20386554,4504.1,4503.9,0.7354]
[1756338150232,2.33135084,4504.2,4503.9,0.3007]
[1756338150417,0.20404348,4504.1,4503.9,0.3007]
[1756338150625,0.20404348,4504.0,4503.9,0.3007]
[1756338151132,0.31524591,4504.2,4503.9,0.3007]
[1756338151317,0.20404591,4504.1,4503.9,0.3007]
[1756338151522,0.1112,4504.2,4504.0,0.4347]
[1756338151741,0.02,4504.8,4504.1,5.84006502]
[1756338152047,0.02,4504.8,4504.0,0.4347]
[1756338152048,0.02,4504.8,4504.7,9.24166668]
[1756338152503,0.02,4504.8,4504.7,9.67636668]
[1756338153306,0.02,4504.8,4504.7,3.85850365]
[1756338153528,0.02,4504.8,4504.7,3.88070268]
[1756338153846,0.1312,4506.8,4505.7,2.21941096]
[1756338154050,0.02,4506.8,4505.7,8.10135206]
[1756338154336,0.4564,4506.7,4505.7,2.0077]
[1756338154539,2.2195072,4505.6,4504.8,2.1417]
[1756338154701,0.02,4505.8,4504.8,2.1417]
[1756338154906,0.1112,4505.6,4505.0,0.1112]
[1756338155134,2.52700655,4505.1,4504.1,2.1417]
[1756338155323,0.1112,4505.0,4504.4,0.1112]
[1756338155655,0.1112,4505.0,4504.9,0.3007]
[1756338155939,0.1112,4505.3,4504.9,0.7354]
[1756338156117,0.20449539,4505.7,4504.9,0.7354]
[1756338156118,2.21951862,4505.5,4505.0,0.4347]
[1756338156316,2.21951862,4505.5,4504.9,0.3007]
[1756338156317,0.02,4505.8,4505.7,2.21941096]
[1756338156521,0.02,4505.8,4505.7,7.4019671]
[1756338156718,0.02,4505.8,4505.7,7.490973]
[1756338157325,0.02,4505.8,4505.7,7.489973]
[1756338157524,0.02,4505.8,4505.7,0.8466]
[1756338157862,0.02,4505.8,4505.7,7.01601096]
[1756338158029,0.02,4505.8,4505.7,0.1112]
[1756338158222,0.3273,4505.8,4505.1,1.707]
[1756338158437,0.4385,4505.8,4505.2,0.1112]
[1756338158746,2.21941096,4505.7,4505.2,0.1112]
[1756338159048,2.21947511,4505.6,4505.2,0.1112]
[1756338159411,2.2194146,4505.7,4505.2,0.1112]
[1756338159607,0.1312,4505.8,4505.2,0.1112]
[1756338159808,0.02,4505.8,4505.6,0.3007]
[1756338160030,0.02,4505.8,4505.7,6.71331096]
[1756338160459,0.02,4505.8,4505.7,7.01401096]
[1756338160827,0.02,4505.8,4505.7,0.1112]
[1756338161024,0.4385,4505.8,4505.2,0.1112]
[1756338161328,2.21948347,4505.6,4505.2,0.1112]
[1756338161528,0.02,4505.8,4505.5,0.3007]
[1756338161825,0.02,4505.8,4505.6,0.4347]
[1756338162143,0.02,4505.8,4505.5,0.1112]
[1756338162455,2.23936669,4505.8,4505.5,0.1112]
[1756338162942,0.02,4505.8,4505.5,0.1112]
[1756338163145,2.21941126,4505.7,4505.0,0.4347]
[1756338163329,2.21941126,4505.7,4505.3,0.1112]
[1756338163532,0.02,4505.8,4505.3,0.1112]
[1756338163733,2.23937231,4505.8,4505.3,0.1112]
[1756338164349,2.21941129,4505.7,4505.3,0.1112]
[1756338164527,0.02,4505.8,4505.3,0.1112]
[1756338164847,2.69576534,4505.8,4505.3,0.1112]
[1756338165253,2.23936534,4505.8,4505.3,0.1112]
[1756338165558,2.21941096,4505.7,4505.3,0.1112]
[1756338165747,2.21946617,4505.6,4505.3,0.1112]
[1756338166046,2.23940771,4505.8,4505.3,0.1112]
[1756338166249,2.21942156,4505.7,4505.3,0.1112]
[1756338166825,0.02,4505.8,4505.3,0.1112]
[1756338167445,2.21941598,4505.7,4505.3,0.1112]
[1756338167644,2.21942054,4505.7,4505.3,0.1112]
[1756338167821,0.02,4505.8,4505.3,0.1112]
[1756338167822,2.21946072,4505.6,4505.3,0.1112]
[1756338168227,2.21966898,4505.2,4504.5,0.4724]
[1756338168428,2.21976364,4505.0,4504.9,0.1112]
[1756338168644,0.5570777,4505.6,4504.9,0.1112]
[1756338168645,2.21955732,4505.5,4504.9,0.1112]
[1756338168952,0.5570777,4505.6,4504.9,0.1112]
[1756338169158,0.4726,4505.5,4504.7,0.1112]
[1756338169367,2.21974678,4505.1,4504.7,0.1112]
[1756338170573,0.1112,4505.3,4504.7,0.5836]
[1756338170740,2.21985437,4504.8,4504.7,0.1112]
[1756338170928,2.22000791,4504.5,4503.9,3.0]
[1756338171128,2.22000791,4504.5,4504.2,0.1112]
[1756338171547,2.21996527,4504.6,4504.2,0.1112]
[1756338171759,0.1112,4505.1,4504.4,0.408]